bitfinex-derivatives/quotes_BTCF0:USTF0_20250728
["timestamp","ask_amount","ask_price","bid_price","bid_amount"]
[1753679213465,0.4208252,119200.0,119190.0,1.1913588]
[1753679214366,0.2116838,119200.0,119190.0,1.1913588]
[1753679214662,0.002,119200.0,119190.0,1.4005002]
[1753679214867,0.1697401,119200.0,119190.0,1.08598173]
[1753679217265,0.1697401,119200.0,119190.0,1.75526173]
[1753679217465,0.1258031,119210.0,119200.0,0.21676]
[1753679217664,0.2935398,119210.0,119200.0,0.82987993]
[1753679217865,0.5026812,119210.0,119200.0,0.62073853]
[1753679218163,0.2935398,119210.0,119200.0,0.91376902]
[1753679219066,0.2935398,119210.0,119200.0,1.41376902]
[1753679219367,0.2935398,119210.0,119200.0,0.99548622]
[1753679219565,0.2945398,119210.0,119200.0,1.41476902]
[1753679219765,0.2526049,119210.0,119200.0,1.41476902]
[1753679220064,0.1687367,119210.0,119200.0,1.30946162]
[1753679220665,0.001,119210.0,119200.0,1.30946162]
[1753679221060,0.001,119210.0,119200.0,1.47723761]
[1753679221359,0.167709,119230.0,119220.0,0.2893521]
[1753679221564,0.167709,119230.0,119220.0,0.8880983]
[1753679221756,0.167709,119230.0,119220.0,0.8129423]
[1753679221963,0.167709,119230.0,119220.0,0.89681732]
[1753679222159,0.167709,119230.0,119220.0,0.47853452]
[1753679222362,0.167709,119230.0,119220.0,0.76274783]
[1753679222863,0.167709,119230.0,119220.0,0.72686703]
[1753679223063,0.170709,119230.0,119220.0,0.72786703]
[1753679224166,0.170709,119230.0,119220.0,1.22786703]
[1753679224868,0.171709,119230.0,119220.0,1.22886703]
[1753679232170,0.171709,119230.0,119220.0,1.15379512]
[1753679236572,0.171709,119230.0,119220.0,1.22886703]
[1753679237070,0.171709,119230.0,119220.0,1.15379512]
[1753679238375,0.171709,119230.0,119220.0,1.22886703]
[1753679239273,0.171709,119230.0,119220.0,0.95029903]
[1753679239475,0.171709,119230.0,119220.0,1.22886703]
[1753679240669,0.171709,119230.0,119220.0,1.15379512]
[1753679241072,0.171709,119230.0,119220.0,1.22886703]
[1753679242172,0.171709,119230.0,119220.0,0.95029903]
[1753679242374,0.171709,119230.0,119220.0,1.15379512]
[1753679244580,0.171709,119230.0,119220.0,1.22886703]
[1753679244778,0.171709,119230.0,119220.0,1.36813981]
[1753679249382,0.171709,119230.0,119220.0,0.87522712]
[1753679249579,0.198489,119230.0,119220.0,0.98053452]
[1753679249780,0.250119,119230.0,119220.0,1.18945491]
[1753679249981,0.45903939,119230.0,119220.0,1.45159276]
[1753679250186,0.45903939,119230.0,119220.0,0.78295276]
[1753679250782,0.66795978,119230.0,119220.0,0.52443]
[1753679250980,0.250119,119230.0,119220.0,0.90762342]
[1753679251186,0.250119,119230.0,119220.0,1.07533572]
[1753679251591,0.250119,119230.0,119220.0,0.57533572]
[1753679251788,0.45903939,119230.0,119220.0,0.40762342]
[1753679251993,0.250119,119230.0,119220.0,0.57533562]
[1753679252394,0.250119,119230.0,119220.0,0.78425601]
[1753679252789,0.243719,119230.0,119220.0,0.78425601]
[1753679252993,0.171709,119230.0,119220.0,1.292698]
[1753679253292,0.004,119230.0,119220.0,1.292698]
[1753679253594,0.004,119230.0,119220.0,1.3980054]
[1753679254295,0.1716983,119230.0,119220.0,1.3980054]
[1753679255698,0.1696983,119230.0,119220.0,1.3980054]
[1753679257599,0.1696983,119230.0,119220.0,1.292698]
[1753679260102,0.1696983,119230.0,119220.0,1.398276]
[1753679260298,0.1697483,119230.0,119220.0,1.398276]
[1753679262695,0.1697483,119230.0,119220.0,1.292698]
[1753679263807,0.1697483,119230.0,119220.0,1.39824714]
[1753679272809,0.1400874,119250.0,119240.0,0.2889545]
[1753679273015,0.30303285,119250.0,119240.0,0.82949509]
[1753679273414,0.30303285,119250.0,119240.0,0.91337011]
[1753679274316,0.23402285,119250.0,119240.0,0.91437011]
[1753679274613,0.23402285,119250.0,119240.0,0.80882097]
[1753679274915,0.23602285,119250.0,119240.0,0.39198019]
[1753679275115,0.30584285,119250.0,119240.0,1.30982097]
[1753679275315,0.30584285,119250.0,119240.0,1.37664451]
[1753679275711,0.30384285,119250.0,119240.0,1.37564451]
[1753679276015,0.30284285,119250.0,119240.0,1.37564451]
[1753679277017,0.29884285,119250.0,119240.0,1.37564451]
[1753679277212,0.19110315,119250.0,119240.0,1.37564451]
[1753679278116,0.1696704,119250.0,119240.0,1.48119365]
[1753679278416,0.33591394,119260.0,119250.0,0.2892104]
[1753679278714,0.33991394,119260.0,119250.0,0.61489896]
[1753679278912,0.33991394,119260.0,119250.0,0.68442017]
[1753679279516,0.34191394,119260.0,119250.0,0.68542017]
[1753679279815,0.34191394,119260.0,119250.0,0.57987103]
[1753679280114,0.34391394,119260.0,119250.0,1.18642017]
[1753679280316,0.35031394,119260.0,119250.0,0.90797857]
[1753679281016,0.35031394,119260.0,119250.0,1.18642017]
[1753679284222,0.3319179,119260.0,119250.0,0.90797857]
[1753679284421,0.3255179,119260.0,119250.0,1.18642017]
[1753679284719,0.3255179,119260.0,119250.0,0.90797857]
[1753679284916,0.3255179,119260.0,119250.0,1.18642017]
[1753679287622,0.3255179,119260.0,119250.0,0.90797857]
[1753679287822,0.3255179,119260.0,119250.0,1.18642017]
[1753679297531,0.2824779,119260.0,119250.0,1.18642017]
[1753679297730,0.004,119260.0,119250.0,1.93847409]
[1753679297934,0.004,119260.0,119250.0,1.83292495]
[1753679298236,0.004,119260.0,119250.0,1.93847409]
[1753679298830,0.004,119260.0,119250.0,1.97203251]
[1753679300835,0.004,119260.0,119250.0,1.83284546]
[1753679302231,0.1716563,119260.0,119250.0,1.83284546]
[1753679305835,0.004,119260.0,119250.0,1.83284546]
[1753679306237,0.004,119260.0,119250.0,1.55448335]
[1753679306434,0.004,119260.0,119250.0,1.83284546]
[1753679307937,0.004,119260.0,119250.0,1.93820776]
[1753679311739,0.1716563,119260.0,119250.0,1.93820776]
[1753679313245,0.004,119260.0,119250.0,1.93820776]
[1753679313547,0.004,119260.0,119250.0,1.83284546]
[1753679319250,0.1615477,119280.0,119270.0,0.04715]
[1753679319450,0.3710862,119280.0,119270.0,0.58167097]
[1753679319651,0.3710862,119280.0,119270.0,0.65689486]
[1753679320346,0.3740862,119280.0,119270.0,0.65789486]
[1753679320550,0.3740862,119280.0,119270.0,0.58267097]
[1753679321453,0.3780862,119280.0,119270.0,0.58367097]
[1753679321654,0.3780862,119280.0,119270.0,1.08367097]
[1753679322051,0.3760862,119280.0,119270.0,0.80530886]
[1753679322254,0.3760862,119280.0,119270.0,1.08367097]
[1753679322852,0.3730862,119280.0,119270.0,1.08267097]
[1753679323054,0.3740862,119280.0,119270.0,1.08267097]
[1753679324252,0.3233362,119280.0,119270.0,1.08267097]
[1753679324659,0.3676862,119280.0,119270.0,1.08267097]
[1753679324958,0.3740862,119280.0,119270.0,1.08267097]
[1753679327558,0.3740862,119280.0,119270.0,1.18798249]
[1753679327762,0.3740862,119280.0,119270.0,0.90962038]
[1753679328058,0.3740862,119280.0,119270.0,1.18798249]
[1753679328259,0.3740862,119280.0,119270.0,0.90962038]
[1753679328564,0.3740862,119280.0,119270.0,1.18798249]
[1753679328961,0.2798654,119280.0,119270.0,1.27182235]
[1753679329263,0.2554054,119280.0,119270.0,1.27182235]
[1753679330560,0.2395154,119280.0,119270.0,1.27182235]
[1753679330959,0.2395154,119280.0,119270.0,1.93974235]
[1753679332962,0.1706281,119280.0,119270.0,1.93974235]
[1753679333564,0.1706281,119280.0,119270.0,1.83443083]
[1753679333867,0.1706281,119280.0,119270.0,1.93983441]
[1753679334569,0.1976081,119280.0,119270.0,1.93983441]
[1753679336366,0.1976081,119280.0,119270.0,1.6614723]
[1753679336568,0.1976081,119280.0,119270.0,1.93983441]
[1753679337362,0.1706281,119280.0,119270.0,1.93983441]
[1753679340267,0.1706281,119280.0,119270.0,1.6614723]
[1753679340471,0.1706281,119280.0,119270.0,1.93983441]
[1753679341069,0.1706281,119280.0,119270.0,1.87024538]
[1753679341371,0.45607118,119280.0,119270.0,1.4941901]
[1753679341572,0.45607118,119280.0,119270.0,1.87060558]
[1753679341873,0.2408981,119280.0,119270.0,1.87060558]
[1753679342073,0.44967118,119280.0,119270.0,1.87060558]
[1753679342273,0.44967118,119280.0,119270.0,1.6618325]
[1753679342465,0.2408981,119280.0,119270.0,1.87060558]
[1753679342671,0.44967118,119280.0,119270.0,1.765202]
[1753679342874,0.44567118,119280.0,119270.0,1.765202]
[1753679343270,0.42270118,119280.0,119270.0,1.765202]
[1753679344181,0.42270118,119280.0,119270.0,1.55642892]
[1753679344374,0.2139281,119280.0,119270.0,1.55642892]
[1753679344571,0.42270118,119280.0,119270.0,1.765202]
[1753679345078,0.2139281,119280.0,119270.0,1.765202]
[1753679345269,0.40629118,119280.0,119270.0,1.765202]
[1753679345463,0.1975181,119280.0,119270.0,1.765202]
[1753679345670,0.21584817,119280.0,119270.0,1.765202]
[1753679346173,0.21584817,119280.0,119270.0,1.55642892]
[1753679346374,0.21584817,119280.0,119270.0,1.765202]
[1753679346773,0.42462125,119280.0,119270.0,1.765202]
[1753679347075,0.44103125,119280.0,119270.0,1.765202]
[1753679347375,0.46400125,119280.0,119270.0,1.765202]
[1753679347578,0.25522817,119280.0,119270.0,1.765202]
[1753679348379,0.25522817,119280.0,119270.0,1.55642892]
[1753679348575,0.25522817,119280.0,119270.0,1.765202]
[1753679348774,0.25522817,119280.0,119270.0,1.55642892]
[1753679348975,0.25522817,119280.0,119270.0,1.765202]
[1753679349979,0.21584817,119280.0,119270.0,1.765202]
[1753679350279,0.21584817,119280.0,119270.0,1.87060558]
[1753679352080,0.42462125,119280.0,119270.0,1.55642892]
[1753679352281,0.21584817,119280.0,119270.0,1.87067264]
[1753679352881,0.21584817,119280.0,119270.0,1.66189956]
[1753679353083,0.21584817,119280.0,119270.0,1.87067264]
[1753679353688,0.21584817,119280.0,119270.0,1.765202]
[1753679353886,0.18895817,119280.0,119270.0,1.97397508]
[1753679354081,0.2095217,119290.0,119280.0,0.2913285]
[1753679354282,0.19111431,119290.0,119280.0,0.70887466]
[1753679354481,0.19111431,119290.0,119280.0,0.81434524]
[1753679354785,0.19111431,119290.0,119280.0,0.8981851]
[1753679355187,0.19111431,119290.0,119280.0,0.48063894]
[1753679355380,0.19411431,119290.0,119280.0,0.79371452]
[1753679355582,0.19811431,119290.0,119280.0,0.79471452]
[1753679355781,0.19811431,119290.0,119280.0,1.29471452]
[1753679356286,0.19511431,119290.0,119280.0,1.29371452]
[1753679356480,0.19311431,119290.0,119280.0,1.29271452]
[1753679356687,0.19511431,119290.0,119280.0,1.29371452]
[1753679356986,0.19511431,119290.0,119280.0,1.15444075]
[1753679357786,0.19511431,119290.0,119280.0,1.25991133]
[1753679359387,0.19511431,119290.0,119280.0,1.15444075]
[1753679363784,0.19511431,119290.0,119280.0,0.98681225]
[1753679363991,0.19511431,119290.0,119280.0,1.15444065]
[1753679364691,0.19511431,119290.0,119280.0,0.87616826]
[1753679364889,0.19511431,119290.0,119280.0,1.15444065]
[1753679366796,0.19511431,119290.0,119280.0,0.87616826]
[1753679366991,0.19511431,119290.0,119280.0,1.15444065]
[1753679368791,0.19511431,119290.0,119280.0,0.87616826]
[1753679369098,0.26676431,119290.0,119280.0,1.25991123]
[1753679369395,0.26676431,119290.0,119280.0,1.09228283]
[1753679369596,0.27316431,119290.0,119280.0,0.6247]
[1753679369897,0.5514367,119290.0,119280.0,0.6247]
[1753679370197,0.5514367,119290.0,119280.0,0.6999258]
[1753679372500,0.27316431,119290.0,119280.0,0.6999258]
[1753679372694,0.5514367,119290.0,119280.0,0.6999258]
[1753679373095,0.5514367,119290.0,119280.0,0.8675541]
[1753679373797,0.5514367,119290.0,119280.0,0.7923283]
[1753679374098,0.27316431,119290.0,119280.0,0.7923283]
[1753679374400,0.27316431,119290.0,119280.0,1.14582649]
[1753679377003,0.26676431,119290.0,119280.0,1.14582649]
[1753679377201,0.19511431,119290.0,119280.0,1.22965932]
[1753679377597,0.19511431,119290.0,119280.0,1.15443352]
[1753679384606,0.1716142,119290.0,119280.0,1.43270591]
[1753679385307,0.004,119290.0,119280.0,1.53817649]
[1753679385503,0.1676099,119300.0,119290.0,0.2145742]
[1753679385809,0.26981411,119310.0,119300.0,0.2891702]
[1753679385997,0.26981411,119310.0,119300.0,0.64265633]
[1753679386607,0.2513931,119310.0,119300.0,0.72647511]
[1753679387710,0.2616831,119310.0,119300.0,0.72647511]
[1753679388111,0.2626831,119310.0,119300.0,0.72647511]
[1753679388304,0.2636831,119310.0,119300.0,0.72747511]
[1753679388504,0.2636831,119310.0,119300.0,0.79542308]
[1753679389412,0.2636831,119310.0,119300.0,1.29542308]
[1753679389811,0.2636831,119310.0,119300.0,1.01715069]
[1753679390013,0.2636831,119310.0,119300.0,1.29542308]
[1753679391613,0.2636831,119310.0,119300.0,1.22020934]
[1753679392312,0.2636831,119310.0,119300.0,1.29535519]
[1753679392512,0.3210431,119310.0,119300.0,1.29535519]
[1753679392713,0.3290431,119310.0,119300.0,1.29535519]
[1753679396718,0.3290431,119310.0,119300.0,1.12775499]
[1753679396919,0.3290431,119310.0,119300.0,1.29535549]
[1753679397822,0.3290431,119310.0,119300.0,0.8494826]
[1753679398021,0.62011549,119310.0,119300.0,0.8494826]
[1753679398322,0.3418431,119310.0,119300.0,0.76566382]
[1753679398518,0.62011549,119310.0,119300.0,0.76566382]
[1753679399328,0.3418431,119310.0,119300.0,0.78266986]
[1753679401320,1.0115231,119310.0,119300.0,0.78266986]
[1753679403030,1.28979549,119310.0,119300.0,0.67454797]
[1753679403222,1.28979549,119310.0,119300.0,0.60042797]
[1753679403536,1.28979549,119310.0,119300.0,0.56894797]
[1753679403828,1.0115231,119310.0,119300.0,0.06894797]
[1753679404030,1.28979549,119310.0,119300.0,0.14829797]
[1753679404431,1.0115231,119310.0,119300.0,0.18899797]
[1753679404836,1.0115231,119310.0,119300.0,0.35659847]
[1753679405019,1.0156031,119310.0,119300.0,0.35659847]
[1753679405220,0.3418431,119310.0,119300.0,0.35659847]
[1753679405428,0.9433931,119310.0,119300.0,0.63487086]
[1753679405631,0.2533931,119310.0,119300.0,0.71001671]
[1753679406131,0.2533931,119310.0,119300.0,1.21001671]
[1753679408321,0.2533931,119310.0,119300.0,0.93174432]
[1753679408525,0.2533931,119310.0,119300.0,1.0155631]
[1753679408727,0.2533931,119310.0,119300.0,1.29383549]
[1753679410628,0.2114936,119310.0,119300.0,1.29383549]
[1753679410835,0.1695864,119310.0,119300.0,1.29383549]
[1753679411429,0.1695864,119310.0,119300.0,1.21868964]
[1753679412027,0.1695864,119310.0,119300.0,1.32416022]
[1753679414235,0.1695864,119310.0,119300.0,1.21868964]
[1753679415434,0.1695864,119310.0,119300.0,1.32416022]
[1753679416037,0.1695864,119310.0,119300.0,1.04588783]
[1753679416236,0.1695864,119310.0,119300.0,1.32416022]
[1753679420134,0.002,119310.0,119300.0,1.32416022]
[1753679420336,0.2932713,119320.0,119310.0,0.2876366]
[1753679420537,0.2932713,119320.0,119310.0,1.48418853]
[1753679420929,0.3340813,119320.0,119310.0,1.12214832]
[1753679421239,0.3659113,119320.0,119310.0,1.40042071]
[1753679421433,0.3787113,119320.0,119310.0,1.40042071]
[1753679421633,0.3827113,119320.0,119310.0,1.198287]
[1753679422036,0.3827113,119320.0,119310.0,1.97655939]
[1753679422533,0.3827113,119320.0,119310.0,1.1814736]
[1753679422730,0.3827113,119320.0,119310.0,1.29215939]
[1753679423130,0.3827113,119320.0,119310.0,1.45974599]
[1753679423531,0.3827113,119320.0,119310.0,1.1814736]
[1753679423745,0.3827113,119320.0,119310.0,1.45974599]
[1753679424243,0.3699113,119320.0,119310.0,1.45974599]
[1753679425045,0.2134801,119320.0,119310.0,1.45974599]
[1753679426351,0.2134801,119320.0,119310.0,1.38460731]
[1753679426948,0.2134801,119320.0,119310.0,1.1814736]
[1753679427249,0.2554001,119320.0,119310.0,1.1814736]
[1753679427446,0.2794601,119320.0,119310.0,1.45974599]
[1753679427750,0.2854601,119320.0,119310.0,1.10633492]
[1753679428049,0.2844601,119320.0,119310.0,1.38460731]
[1753679428249,0.2844601,119320.0,119310.0,1.10633492]
[1753679428551,0.2844601,119320.0,119310.0,1.38460731]
[1753679429442,0.2844601,119320.0,119310.0,1.10633492]
[1753679429641,0.2844601,119320.0,119310.0,1.38460731]
[1753679430354,0.2844601,119320.0,119310.0,1.10633492]
[1753679430555,0.2844601,119320.0,119310.0,1.38460731]
[1753679431050,0.2844601,119320.0,119310.0,1.45974599]
[1753679432153,0.2844601,119320.0,119310.0,1.1814736]
[1753679432354,0.2844601,119320.0,119310.0,1.38460731]
[1753679432949,0.2844601,119320.0,119310.0,1.49007789]
[1753679433250,0.2764601,119320.0,119310.0,1.38460731]
[1753679434357,0.2524001,119320.0,119310.0,1.10633492]
[1753679434553,0.2524001,119320.0,119310.0,1.38460731]
[1753679435048,0.2362901,119320.0,119310.0,1.38460731]
[1753679435456,0.2104801,119320.0,119310.0,1.38460731]
[1753679436454,0.1685855,119320.0,119310.0,1.49007789]
[1753679437254,0.1685855,119320.0,119310.0,1.38460731]
[1753679437657,0.001,119320.0,119310.0,1.48987185]
[1753679437859,0.1685724,119320.0,119310.0,1.48987185]
[1753679444365,0.001,119320.0,119310.0,1.48987185]
[1753679444565,0.1685723,119320.0,119310.0,1.48987185]
[1753679446165,0.1685723,119320.0,119310.0,1.38460731]
[1753679446657,0.1685723,119320.0,119310.0,1.10633492]
[1753679446863,0.1685723,119320.0,119310.0,1.53560573]
[1753679447658,0.1685723,119320.0,119310.0,1.10633492]
[1753679447858,0.1685723,119320.0,119310.0,1.38460731]
[1753679448969,0.1685723,119320.0,119310.0,1.10633492]
[1753679449166,0.1685723,119320.0,119310.0,1.38460731]
[1753679449463,0.001,119320.0,119310.0,1.38460731]
[1753679450561,0.2725457,119330.0,119320.0,0.2893928]
[1753679450761,0.3144383,119330.0,119320.0,1.36333407]
[1753679451167,0.3144383,119330.0,119320.0,1.44714582]
[1753679451367,0.3144383,119330.0,119320.0,1.44714581]
[1753679451669,0.3144383,119330.0,119320.0,1.44814581]
[1753679451867,0.3174383,119330.0,119320.0,1.94814581]
[1753679453371,0.3174383,119330.0,119320.0,1.66987342]
[1753679453575,0.3174383,119330.0,119320.0,1.94814581]
[1753679454669,0.3094383,119330.0,119320.0,1.94814581]
[1753679455171,0.3174383,119330.0,119320.0,1.94552664]
[1753679456574,0.3174383,119330.0,119320.0,1.66725425]
[1753679456770,0.3174383,119330.0,119320.0,1.94552664]
[1753679458872,0.3174383,119330.0,119320.0,1.66725425]
[1753679459078,0.3174383,119330.0,119320.0,1.94552664]
[1753679459976,0.3174383,119330.0,119320.0,1.66725425]
[1753679460171,0.3174383,119330.0,119320.0,1.94552664]
[1753679460776,0.3174383,119330.0,119320.0,1.66725425]
[1753679460979,0.3174383,119330.0,119320.0,1.94552664]
[1753679461481,0.2853783,119330.0,119320.0,1.84031694]
[1753679464078,0.2853783,119330.0,119320.0,1.56204455]
[1753679464376,0.2853783,119330.0,119320.0,1.84031694]
[1753679464569,0.2692683,119330.0,119320.0,1.84031694]
[1753679465672,0.2434583,119330.0,119320.0,1.84031694]
[1753679467479,0.2434583,119330.0,119320.0,1.56204455]
[1753679467676,0.2434583,119330.0,119320.0,1.84031694]
[1753679468782,0.2434583,119330.0,119320.0,1.94552664]
[1753679471275,0.2434583,119330.0,119320.0,2.02076231]
[1753679471682,0.1705697,119330.0,119320.0,1.91555261]
[1753679471979,0.1705586,119330.0,119320.0,1.91555261]
[1753679472178,0.1705586,119330.0,119320.0,1.84031694]
[1753679474782,0.1705586,119330.0,119320.0,1.97918093]
[1753679479686,0.1958586,119330.0,119320.0,1.97918093]
[1753679479889,0.2115686,119330.0,119320.0,1.56204455]
[1753679480090,0.2115686,119330.0,119320.0,1.97918093]
[1753679480392,0.2355786,119330.0,119320.0,1.97918093]
[1753679481088,0.2355786,119330.0,119320.0,2.08439063]
[1753679481588,0.2115686,119330.0,119320.0,1.97918093]
[1753679481776,0.04101,119330.0,119320.0,1.97918093]
[1753679481983,0.2085686,119330.0,119320.0,1.97918093]
[1753679482385,0.2405786,119330.0,119320.0,1.97918093]
[1753679483783,0.2325786,119330.0,119320.0,1.97918093]
[1753679484492,0.2325786,119330.0,119320.0,1.56204455]
[1753679484882,0.2325786,119330.0,119320.0,1.97918093]
[1753679485489,0.2325786,119330.0,119320.0,1.56204455]
[1753679485988,0.2085686,119330.0,119320.0,1.97918093]
[1753679486189,0.1928586,119330.0,119320.0,1.97918093]
[1753679486488,0.1675586,119330.0,119320.0,1.97918093]
[1753679487688,0.1675586,119330.0,119320.0,2.0845344]
[1753679489087,0.1675586,119330.0,119320.0,1.66739802]
[1753679489288,0.1675586,119330.0,119320.0,2.0845344]
[1753679489690,0.1675586,119330.0,119320.0,1.66739802]
[1753679489891,0.1675586,119330.0,119320.0,2.0845344]
[1753679493592,0.2406186,119330.0,119320.0,2.0845344]
[1753679493893,0.46198679,119330.0,119320.0,1.87144601]
[1753679494295,0.46198679,119330.0,119320.0,1.66287782]
[1753679494496,0.46198679,119330.0,119320.0,1.87144601]
[1753679494689,0.46198679,119330.0,119320.0,1.66287782]
[1753679494886,0.46198679,119330.0,119320.0,1.87144601]
[1753679495100,0.2534186,119330.0,119320.0,1.87144601]
[1753679495295,0.46198679,119330.0,119320.0,1.87144601]
[1753679496001,0.46198679,119330.0,119320.0,1.66287782]
[1753679496394,0.46198679,119330.0,119320.0,1.87144601]
[1753679497493,0.46198679,119330.0,119320.0,1.66287782]
[1753679497698,0.46198679,119330.0,119320.0,2.0800142]
[1753679500002,0.28162819,119330.0,119320.0,2.0800142]
[1753679500205,0.07306,119330.0,119320.0,2.0800142]
[1753679500401,0.28162819,119330.0,119320.0,2.0800142]
[1753679500601,0.44918669,119330.0,119320.0,2.0800142]
[1753679501399,0.44918669,119330.0,119320.0,1.55752435]
[1753679501599,0.44918669,119330.0,119320.0,1.97466073]
[1753679501906,0.2406185,119330.0,119320.0,1.97466073]
[1753679502108,0.44918669,119330.0,119320.0,1.97466073]
[1753679502306,0.28162819,119330.0,119320.0,2.07998786]
[1753679502506,0.44918659,119330.0,119320.0,2.07998786]
[1753679503708,0.1934884,119330.0,119320.0,2.15522099]
[1753679503916,0.1934884,119330.0,119320.0,2.04989386]
[1753679504411,0.02593,119330.0,119320.0,2.04989386]
[1753679504616,0.53295949,119340.0,119330.0,0.2164483]
[1753679504816,0.53295949,119340.0,119330.0,0.51409783]
[1753679505419,0.53295949,119340.0,119330.0,1.01409783]
[1753679506410,0.53695949,119340.0,119330.0,0.80652964]
[1753679506616,0.54975949,119340.0,119330.0,1.01509783]
[1753679508919,0.54975949,119340.0,119330.0,0.80652964]
[1753679509112,0.54975949,119340.0,119330.0,1.01509783]
[1753679509524,0.3411913,119340.0,119330.0,1.01509783]
[1753679509723,0.54975949,119340.0,119330.0,0.84753953]
[1753679510023,0.54975949,119340.0,119330.0,0.85714221]
[1753679510634,0.54975949,119340.0,119330.0,1.02470041]
[1753679510925,0.54975949,119340.0,119330.0,0.85714221]
[1753679511220,0.3411913,119340.0,119330.0,1.02470041]
[1753679511422,0.75832768,119340.0,119330.0,0.64857402]
[1753679511822,0.75832768,119340.0,119330.0,0.85714221]
[1753679512127,0.75832768,119340.0,119330.0,1.02470051]
[1753679512328,0.54975949,119340.0,119330.0,1.02470051]
[1753679512737,0.54975949,119340.0,119330.0,0.85714221]
[1753679512932,0.54975949,119340.0,119330.0,1.02470051]
[1753679513126,0.3411913,119340.0,119330.0,1.02470051]
[1753679513325,0.54975949,119340.0,119330.0,0.85714221]
[1753679513832,0.3411913,119340.0,119330.0,1.02470041]
[1753679514032,0.54975949,119340.0,119330.0,0.85714221]
[1753679514227,0.54975949,119340.0,119330.0,1.02470041]
[1753679514422,0.3411913,119340.0,119330.0,1.02470041]
[1753679514726,0.54975949,119340.0,119330.0,1.02470041]
[1753679515032,0.54975949,119340.0,119330.0,0.85714221]
[1753679515331,0.3411913,119340.0,119330.0,1.02470051]
[1753679515527,0.54975949,119340.0,119330.0,0.85714221]
[1753679516237,0.54975949,119340.0,119330.0,1.02470051]
[1753679516832,0.54975949,119340.0,119330.0,0.64857402]
[1753679517033,0.54975949,119340.0,119330.0,0.85714221]
[1753679517236,0.3411913,119340.0,119330.0,1.02470051]
[1753679517430,0.54975949,119340.0,119330.0,1.02470051]
[1753679517635,0.54975949,119340.0,119330.0,0.85714221]
[1753679518627,0.54975949,119340.0,119330.0,0.64857402]
[1753679518826,0.54975949,119340.0,119330.0,1.02470051]
[1753679519434,0.54975949,119340.0,119330.0,0.85714221]
[1753679519733,0.3411913,119340.0,119330.0,0.85714221]
[1753679519935,0.54975949,119340.0,119330.0,1.02470051]
[1753679520735,0.3411913,119340.0,119330.0,1.02470051]
[1753679520936,0.54975949,119340.0,119330.0,1.02470051]
[1753679521936,0.54975949,119340.0,119330.0,1.09993364]
[1753679522130,0.54975949,119340.0,119330.0,0.89136545]
[1753679522337,0.3411913,119340.0,119330.0,1.09993364]
[1753679522531,0.54975949,119340.0,119330.0,1.09993364]
[1753679523237,0.3411913,119340.0,119330.0,1.09993364]
[1753679523440,0.54975949,119340.0,119330.0,1.09993364]
[1753679524040,0.3411913,119340.0,119330.0,1.09993364]
[1753679524236,0.3411913,119340.0,119330.0,0.89136545]
[1753679524439,0.3283913,119340.0,119330.0,0.89136545]
[1753679524638,0.53695949,119340.0,119330.0,1.09993364]
[1753679525136,0.53695949,119340.0,119330.0,0.72380715]
[1753679525639,0.54975949,119340.0,119330.0,0.93237534]
[1753679526140,0.54975949,119340.0,119330.0,0.72380715]
[1753679526440,0.75832768,119340.0,119330.0,0.63279402]
[1753679526639,0.75832768,119340.0,119330.0,0.60876402]
[1753679526942,0.75832768,119340.0,119330.0,0.64848402]
[1753679527434,0.75832768,119340.0,119330.0,0.14848402]
[1753679527841,1.44208768,119340.0,119330.0,0.14848402]
[1753679528340,0.75832768,119340.0,119330.0,0.14848402]
[1753679528743,1.0248713,119340.0,119330.0,0.14848402]
[1753679528934,1.23343949,119340.0,119330.0,0.35705221]
[1753679529444,1.0248713,119340.0,119330.0,0.35705221]
[1753679529743,1.23343949,119340.0,119330.0,0.35705221]
[1753679530331,1.22063949,119340.0,119330.0,0.35705221]
[1753679530538,1.0120713,119340.0,119330.0,0.35705221]
[1753679530737,1.22063949,119340.0,119330.0,0.35705221]
[1753679531634,1.22063949,119340.0,119330.0,0.14848402]
[1753679531835,0.3283913,119340.0,119330.0,0.35705221]
[1753679532030,1.0159913,119340.0,119330.0,0.14848402]
[1753679532437,1.0159913,119340.0,119330.0,0.35705221]
[1753679532641,1.0159913,119340.0,119330.0,0.14848402]
[1753679532839,1.22455949,119340.0,119330.0,0.35705221]
[1753679533242,1.22455949,119340.0,119330.0,0.14848402]
[1753679533443,1.0159913,119340.0,119330.0,0.35705221]
[1753679533645,1.0159913,119340.0,119330.0,0.14848402]
[1753679533943,1.43312768,119340.0,119330.0,0.14848402]
[1753679534144,1.0159913,119340.0,119330.0,0.35705221]
[1753679534333,1.22455949,119340.0,119330.0,0.35705221]
[1753679534738,1.0159913,119340.0,119330.0,0.22371715]
[1753679534936,1.43312768,119340.0,119330.0,0.14848402]
[1753679535544,1.0159913,119340.0,119330.0,0.14848402]
[1753679535845,1.43312768,119340.0,119330.0,0.14848402]
[1753679536241,1.22455949,119340.0,119330.0,0.14848402]
[1753679536447,1.43312768,119340.0,119330.0,0.14848402]
[1753679536741,1.0159913,119340.0,119330.0,0.14848402]
[1753679536946,1.43312768,119340.0,119330.0,0.35705221]
[1753679537142,1.43312768,119340.0,119330.0,0.14848402]
[1753679537446,1.0159913,119340.0,119330.0,0.14848402]
[1753679537649,1.43312768,119340.0,119330.0,0.35705221]
[1753679538047,1.43312768,119340.0,119330.0,0.14848402]
[1753679539244,1.0159913,119340.0,119330.0,0.13238402]
[1753679539445,1.0159913,119340.0,119330.0,0.14848402]
[1753679539642,1.0159913,119340.0,119330.0,0.35705221]
[1753679539949,1.43312768,119340.0,119330.0,0.14848402]
[1753679540546,1.0159913,119340.0,119330.0,0.22371715]
[1753679541137,1.43312768,119340.0,119330.0,0.22371715]
[1753679541538,1.0159913,119340.0,119330.0,0.22371715]
[1753679541744,1.43312768,119340.0,119330.0,0.22371715]
[1753679542743,1.0159913,119340.0,119330.0,0.22371715]
[1753679542946,1.0159913,119340.0,119330.0,0.10292715]
[1753679543144,1.43312768,119340.0,119330.0,0.10292715]
[1753679544455,1.0159913,119340.0,119330.0,0.10292715]
[1753679544647,1.43312768,119340.0,119330.0,0.10292715]
[1753679545656,1.43312768,119340.0,119330.0,0.13612715]
[1753679547152,1.0159913,119340.0,119330.0,0.13612715]
[1753679547343,1.43312768,119340.0,119330.0,0.13612715]
[1753679548152,1.0159913,119340.0,119330.0,0.13612715]
[1753679548653,1.43312768,119340.0,119330.0,0.13612715]
[1753679549459,1.43312768,119340.0,119330.0,0.18154715]
[1753679549759,1.0159913,119340.0,119330.0,0.18154715]
[1753679550062,1.43312768,119340.0,119330.0,0.18154715]
[1753679550659,1.0159913,119340.0,119330.0,0.18154715]
[1753679550853,1.43312768,119340.0,119330.0,0.18154715]
[1753679552450,1.0159913,119340.0,119330.0,0.18154715]
[1753679552651,1.43312768,119340.0,119330.0,0.18154715]
[1753679554046,1.43312768,119340.0,119330.0,0.10631402]
[1753679558960,1.0159913,119340.0,119330.0,0.10631402]
[1753679559160,1.43312768,119340.0,119330.0,0.10631402]
[1753679559562,1.43312768,119340.0,119330.0,0.08299402]